fUST/lending_fUST_20240808
["ID","MTS","AMOUNT","RATE_DAILY","PERIOD"]
[334451927,1723110647180,-252.0,0.00029922,2]
[334451928,1723110647190,-252.0,0.00029922,2]
[334451929,1723110647200,-252.0,0.00029922,2]
[334451930,1723110647210,-252.0,0.00029922,2]
[334451931,1723110647220,-153.0,0.00029922,2]
[334451932,1723110647230,-153.0,0.00029922,2]
[334451933,1723110647239,-153.0,0.00029922,2]
[334451934,1723110647249,-153.0,0.00029922,2]
[334451935,1723110647260,-153.0,0.00029922,2]
[334451936,1723110647269,-153.0,0.00029922,2]
[334451937,1723110647278,-153.0,0.00029922,2]
[334451938,1723110647288,-153.0,0.00029922,2]
[334451939,1723110647298,-153.0,0.00029922,2]
[334451940,1723110647315,-153.0,0.00029922,2]
[334451941,1723110647325,-153.0,0.00029922,2]
[334451942,1723110647335,-153.0,0.00029922,2]
[334451943,1723110647344,-153.0,0.00029922,2]
[334451944,1723110647353,-153.0,0.00029922,2]
[334451945,1723110647363,-252.0,0.00029922,2]
[334451946,1723110647372,-252.0,0.00029922,2]
[334451947,1723110647381,-252.0,0.00029922,2]
[334451948,1723110647392,-252.0,0.00029922,2]
[334451949,1723110647402,-252.0,0.00029922,2]
[334451950,1723110647412,-252.0,0.00029922,2]
[334451951,1723110647422,-252.0,0.00029922,2]
[334451952,1723110647432,-252.0,0.00029922,2]
[334451953,1723110647442,-252.0,0.00029922,2]
[334451954,1723110647452,-252.0,0.00029922,2]
[334451955,1723110647462,-252.0,0.00029922,2]
[334451956,1723110647472,-252.0,0.00029922,2]
[334451957,1723110647481,-252.0,0.00029922,2]
[334451958,1723110647494,-252.0,0.00029922,2]
[334451959,1723110647505,-305.96342679,0.0003,5]
[334451960,1723110647515,-154.71377951,0.0003,5]
[334451961,1723110647524,-200.0,0.0003,2]
[334451962,1723110647533,-198.93548483,0.0003,2]
[334451963,1723110647543,-1000.0,0.0003,30]
[334451964,1723110647557,-302.51602579,0.0003,2]
[334451965,1723110647570,-302.51602579,0.0003,2]
[334451966,1723110647580,-315.17885914,0.0003,2]
[334451967,1723110647589,-204.0,0.0003,2]
[334451968,1723110647599,-500.0,0.00030076,7]
[334451969,1723110647609,-150.112233,0.000301,10]
[334451970,1723110647619,-500.0,0.00030115,7]
[334451971,1723110647628,-5100.0,0.00030117,7]
[334451972,1723110647638,-516.49573921,0.00030137,2]
[334451973,1723110647649,-500.0,0.00030144,7]
[334451974,1723110647660,-792.40751736,0.00030184,2]
[334451975,1723110647670,-151.0,0.00030242,6]
[334451976,1723110647679,-151.0,0.00030242,6]
[334451977,1723110647689,-150.112233,0.000303,7]
[334451978,1723110647698,-200.0,0.00030411,2]
[334451979,1723110647708,-516.49573921,0.00030414,2]
[334451980,1723110647717,-150.112233,0.000305,8]
[334451981,1723110647727,-3500.0,0.00030545,7]
[334451982,1723110647737,-2300.0,0.00030554,7]
[334451983,1723110647746,-500.0,0.00030561,7]
[334451984,1723110647755,-150.112233,0.000306,10]
[334451985,1723110647765,-602.0,0.000306,2]
[334451986,1723110647776,-500.0,0.00030624,7]
[334451987,1723110647785,-500.0,0.00030643,7]
[334451988,1723110647795,-200.0,0.00030673,5]
[334451989,1723110647810,-200.0,0.00030676,5]
[334451990,1723110647819,-200.0,0.00030676,5]
[334451991,1723110647829,-200.0,0.00030676,5]
[334451992,1723110647839,-200.0,0.00030676,5]
[334451993,1723110647849,-516.49573921,0.0003069,2]
[334451994,1723110647863,-3421.54093531,0.000307,2]
[334451995,1723110647873,-1011.80534993,0.00030718,2]
[334451996,1723110647883,-5100.0,0.0003074,7]
[334451997,1723110647892,-151.0,0.0003079,7]
[334451998,1723110647902,-731.302304,0.0003079,7]
[334451999,1723110647912,-210.275677,0.0003079,7]
[334452000,1723110647922,-731.302304,0.0003079,7]
[334452001,1723110647932,-151.0,0.0003079,7]
[334452002,1723110647942,-151.0,0.0003079,7]
[334452003,1723110647951,-68400.52968922,0.0003079,4]
[334452018,1723111305866,170.516202,0.00014247,2]
[334452019,1723111348599,3603.76011212,0.00014247,2]
[334452020,1723111357948,1239.69729321,0.00014247,2]
[334452021,1723111363862,2269.8181466,0.00014247,2]
[334452022,1723111368916,451.89339907,0.00014247,2]
[334452023,1723111376842,3785.54866294,0.00014247,2]
[334452026,1723111441613,1201.80870259,0.00014247,2]
[334452028,1723111510213,3094.69461851,0.00014999,2]
[334452030,1723111601525,269.80506811,0.00014999,2]
[334452031,1723111608675,195.51953148,9.999e-05,2]
[334452032,1723111615138,-250.30450721,0.00015708,2]
[334452033,1723111623964,1109.04434069,0.00015,2]
[334452044,1723111749846,912.9067075,0.00015,2]
[334452046,1723111831323,912.9067075,0.00015,2]
[334452082,1723111833060,-2501.82291105,0.00015708,2]
[334452140,1723111838872,-6361.31694029,0.00015708,2]
[334452141,1723111838882,-1163.36571829,0.00015708,2]
[334452142,1723111838893,-2278.204521,0.00015708,3]
[334452143,1723111838903,-1168.14210948,0.00015708,2]
[334452144,1723111838919,-1524.6162278,0.00015708,2]
[334452145,1723111838931,-1763.75242219,0.00015708,2]
[334452146,1723111838945,-3088.98876635,0.00015708,2]
[334452147,1723111838955,-1500.0,0.00016095,2]
[334452148,1723111838965,-844.51315307,0.0001611,2]
[334452149,1723111838976,-2849.31423163,0.0001611,2]
[334452150,1723111838986,-350.71478825,0.00016309,2]
[334452151,1723111838996,-2124.82285669,0.00017269,2]
[334452152,1723111839005,-13987.92372495,0.00017269,2]
[334452153,1723111839015,-277.18370616,0.0001784,2]
[334452154,1723111839025,-269.66047823,0.0001784,2]
[334452156,1723111839035,-492.52191219,0.00017882,2]
[334452158,1723111839046,-2161.35290212,0.00018182,2]
[334452160,1723111839056,-472.12044886,0.0001891,2]
[334452162,1723111839066,-472.12044886,0.0001891,2]
[334452164,1723111839076,-250.0,0.00019041,2]
[334452166,1723111839086,-5238.95624179,0.00019102,2]
[334452168,1723111839095,-162.47169,0.00019178,2]
[334452170,1723111839105,-273.18649696,0.00019547,2]
[334452172,1723111839116,-167.8621025,0.0002025,2]
[334452174,1723111839127,-2000.0,0.00021048,2]
[334452176,1723111839136,-1795.36662635,0.00021532,2]
[334452178,1723111839146,-951.94046237,0.00021532,2]
[334452180,1723111839155,-209.75633531,0.00021589,2]
[334452182,1723111839168,-862.42234122,0.00021591,2]
[334452184,1723111839177,-200.0,0.00026027,2]
[334452186,1723111839187,-170.516202,0.00026521,2]
[334452188,1723111839197,-1412.0,0.00026876,2]
[334452190,1723111839207,-150.0,0.000273,2]
[334452192,1723111839217,-168.029685,0.00027366,2]
[334452194,1723111839227,-2605.08504403,0.00027396,2]
[334452196,1723111839238,-228.62406428,0.00027396,2]
[334452198,1723111839249,-547.8135611,0.00027397,14]
[334452200,1723111839259,-150.0,0.00028045,2]
[334452203,1723111839269,-150.0,0.00028045,2]
[334452206,1723111839279,-507.0,0.00028045,2]
[334452209,1723111839290,-153.0,0.00028454,2]
[334452212,1723111839301,-165.0,0.00028454,2]
[334452214,1723111839311,-165.0,0.00028454,2]
[334452216,1723111839321,-165.0,0.00028454,2]
[334452219,1723111839330,-153.0,0.00028454,2]
[334452222,1723111839340,-153.0,0.00028454,2]
[334452225,1723111839350,-153.0,0.00028454,2]
[334452228,1723111839360,-153.0,0.00028454,2]
[334452231,1723111839370,-153.0,0.00028454,2]
[334452233,1723111839380,-153.0,0.00028454,2]
[334452235,1723111839390,-153.0,0.00028454,2]
[334452238,1723111839400,-153.0,0.00028454,2]
[334452240,1723111839409,-153.0,0.00028454,2]
[334452242,1723111839424,-153.0,0.00028454,2]
[334452244,1723111839434,-165.0,0.00028454,2]
[334452246,1723111839444,-165.0,0.00028454,2]
[334452248,1723111839454,-165.0,0.00028454,2]
[334452251,1723111839473,-165.0,0.00028454,2]
[334452253,1723111839485,-165.0,0.00028454,2]
[334452255,1723111839495,-165.0,0.00028454,2]
[334452257,1723111839504,-165.0,0.00028454,2]
[334452259,1723111839514,-165.0,0.00028454,2]
[334452261,1723111839525,-165.0,0.00028454,2]
[334452263,1723111839536,-165.0,0.00028454,2]
[334452265,1723111839547,-165.0,0.00028454,2]
[334452267,1723111839556,-165.0,0.00028454,2]
[334452269,1723111839566,-165.0,0.00028454,2]
[334452271,1723111839576,-165.0,0.00028454,2]
[334452273,1723111839588,-165.0,0.00028454,2]
[334452275,1723111839599,-165.0,0.00028454,2]
[334452278,1723111839609,-153.0,0.00028454,2]
[334452280,1723111839621,-153.0,0.00028454,2]
[334452282,1723111839632,-153.0,0.00028454,2]
[334452284,1723111839641,-153.0,0.00028454,2]
[334452286,1723111839651,-153.0,0.00028454,2]
[334452288,1723111839663,-153.0,0.00028454,2]
[334452290,1723111839673,-153.0,0.00028454,2]
[334452292,1723111839685,-153.0,0.00028454,2]
[334452294,1723111839695,-153.0,0.00028454,2]
[334452296,1723111839704,-165.0,0.00028454,2]
[334452298,1723111839714,-165.0,0.00028454,2]
[334452300,1723111839724,-165.0,0.00028454,2]
[334452302,1723111839733,-165.0,0.00028454,2]
[334452304,1723111839743,-165.0,0.00028454,2]
[334452306,1723111839752,-165.0,0.00028454,2]
[334452308,1723111839762,-165.0,0.00028454,2]
[334452310,1723111839773,-165.0,0.00028454,2]
[334452312,1723111839784,-165.0,0.00028454,2]
[334452314,1723111839795,-165.0,0.00028454,2]
[334452316,1723111839805,-165.0,0.00028454,2]
[334452319,1723111839817,-165.0,0.00028454,2]
[334452321,1723111839828,-165.0,0.00028454,2]
[334452323,1723111839839,-165.0,0.00028454,2]
[334452325,1723111839850,-153.0,0.00028454,2]
[334452327,1723111839865,-153.0,0.00028454,2]
[334452329,1723111839875,-153.0,0.00028454,2]
[334452331,1723111839886,-153.0,0.00028454,2]
[334452333,1723111839897,-153.0,0.00028454,2]
[334452336,1723111839907,-153.0,0.00028454,2]
[334452338,1723111839920,-153.0,0.00028454,2]
[334452339,1723111839931,-153.0,0.00028454,2]
[334452341,1723111839941,-153.0,0.00028454,2]
[334452343,1723111839950,-164.0,0.00028454,2]
[334452346,1723111839960,-164.0,0.00028454,2]
[334452348,1723111839969,-164.0,0.00028454,2]
[334452350,1723111839979,-164.0,0.00028454,2]
[334452352,1723111839988,-164.0,0.00028454,2]
[334452354,1723111839998,-164.0,0.00028454,2]
[334452356,1723111840007,-164.0,0.00028454,2]
[334452358,1723111840017,-164.0,0.00028454,2]
[334452360,1723111840028,-164.0,0.00028454,2]
[334452362,1723111840038,-164.0,0.00028454,2]
[334452364,1723111840047,-164.0,0.00028454,2]
[334452366,1723111840057,-164.0,0.00028454,2]
[334452368,1723111840067,-164.0,0.00028454,2]
[334452370,1723111840076,-164.0,0.00028454,2]
[334452372,1723111840087,-9463.3791056,0.00029,2]
[334452374,1723111840098,-172.16524643,0.00029485,2]
[334452376,1723111840107,-600.0,0.00029568,2]
[334452378,1723111840117,-375.86,0.00029571,3]
[334452379,1723111840126,-9494.37,0.00029581,3]
[334452380,1723111840136,-14823.88,0.00029591,3]
[334452381,1723111840146,-24202.67943862,0.00029601,3]
[334452387,1723111841029,-6819.35695338,0.00029601,3]
[334452388,1723111841039,-150.112233,0.000298,6]
[334452389,1723111841049,-31022.036392,0.00029841,3]
[334452390,1723111841058,-4700.0,0.00029851,2]
[334452391,1723111841068,-500.0,0.00029873,2]
[334452392,1723111841078,-212.54094144,0.00029873,2]
[334452393,1723111841091,-500.0,0.00029873,2]
[334452395,1723111841101,-500.0,0.00029873,2]
[334452396,1723111841111,-500.0,0.00029873,2]
[334452398,1723111841121,-500.0,0.00029873,2]
[334452400,1723111841131,-168.19301968,0.00029873,2]
[334452401,1723111841140,-500.0,0.00029873,2]
[334452402,1723111841150,-500.0,0.00029873,2]
[334452403,1723111841159,-500.0,0.00029873,2]
[334452404,1723111841170,-34146.41447306,0.00029874,11]
[334452405,1723111841180,-35613.94890421,0.00029874,2]
[334452406,1723111841189,-153.0,0.00029877,2]
[334452407,1723111841199,-153.0,0.00029877,2]
[334452408,1723111841208,-153.0,0.00029877,2]
[334452409,1723111841219,-153.0,0.00029877,2]
[334452410,1723111841228,-164.0,0.00029877,2]
[334452411,1723111841238,-164.0,0.00029877,2]
[334452412,1723111841247,-164.0,0.00029877,2]
[334452413,1723111841257,-164.0,0.00029877,2]
[334452414,1723111841268,-164.0,0.00029877,2]
[334452415,1723111841278,-164.0,0.00029877,2]
[334452416,1723111841288,-164.0,0.00029877,2]
[334452417,1723111841298,-164.0,0.00029877,2]
[334452418,1723111841308,-153.0,0.00029877,2]
[334452419,1723111841317,-153.0,0.00029877,2]
[334452420,1723111841327,-153.0,0.00029877,2]
[334452421,1723111841336,-153.0,0.00029877,2]
[334452422,1723111841346,-153.0,0.00029877,2]
[334452423,1723111841355,-153.0,0.00029877,2]
[334452424,1723111841365,-153.0,0.00029877,2]
[334452425,1723111841375,-153.0,0.00029877,2]
[334452426,1723111841384,-153.0,0.00029877,2]
[334452427,1723111841394,-164.0,0.00029877,2]
[334452428,1723111841403,-164.0,0.00029877,2]
[334452429,1723111841413,-164.0,0.00029877,2]
[334452430,1723111841423,-164.0,0.00029877,2]
[334452431,1723111841432,-164.0,0.00029877,2]
[334452432,1723111841442,-164.0,0.00029877,2]
[334452433,1723111841451,-164.0,0.00029877,2]
[334452434,1723111841461,-164.0,0.00029877,2]
[334452435,1723111841470,-164.0,0.00029877,2]
[334452436,1723111841480,-164.0,0.00029877,2]
[334452437,1723111841490,-164.0,0.00029877,2]
[334452438,1723111841500,-164.0,0.00029877,2]
[334452439,1723111841510,-164.0,0.00029877,2]
[334452440,1723111841521,-164.0,0.00029877,2]
[334452441,1723111841531,-153.0,0.00029877,2]
[334452442,1723111841540,-153.0,0.00029877,2]
[334452443,1723111841550,-153.0,0.00029877,2]
[334452444,1723111841559,-153.0,0.00029877,2]
[334452445,1723111841569,-153.0,0.00029877,2]
[334452446,1723111841579,-153.0,0.00029877,2]
[334452447,1723111841588,-153.0,0.00029877,2]
[334452448,1723111841598,-153.0,0.00029877,2]
[334452449,1723111841608,-153.0,0.00029877,2]
[334452450,1723111841617,-165.0,0.00029877,2]
[334452451,1723111841627,-165.0,0.00029877,2]
[334452452,1723111841636,-165.0,0.00029877,2]
[334452453,1723111841646,-165.0,0.00029877,2]
[334452454,1723111841656,-165.0,0.00029877,2]
[334452455,1723111841666,-165.0,0.00029877,2]
[334452456,1723111841676,-165.0,0.00029877,2]
[334452457,1723111841687,-165.0,0.00029877,2]
[334452458,1723111841697,-165.0,0.00029877,2]
[334452459,1723111841706,-165.0,0.00029877,2]
[334452460,1723111841716,-165.0,0.00029877,2]
[334452461,1723111841725,-165.0,0.00029877,2]
[334452462,1723111841735,-165.0,0.00029877,2]
[334452463,1723111841744,-165.0,0.00029877,2]
[334452464,1723111841754,-2200.0,0.00029893,2]
[334452465,1723111841763,-2000.0,0.00029918,2]
[334452466,1723111841773,-31022.036392,0.00029936,4]
[334452467,1723111841783,-22773.76598692,0.00029946,3]
[334452468,1723111841792,-3300.0,0.00029952,2]
[334452469,1723111841802,-2200.0,0.00029974,2]
[334452470,1723111841812,-172.16524641,0.00029993,2]
[334452471,1723111841823,-21690.20531296,0.00029995,11]
[334452472,1723111841832,-31022.036392,0.00029995,4]
[334452473,1723111841842,-305.96342679,0.0003,5]
[334452474,1723111841852,-154.72922386,0.0003,5]
[334452475,1723111841866,-385.20792071,0.0003,4]
[334452476,1723111841876,-1000.0,0.0003,30]
[334452477,1723111841886,-150.0,0.0003,2]
[334452478,1723111841896,-4700.0,0.0003,7]
[334452479,1723111841906,-223.0,0.0003,2]
[334452480,1723111841916,-31022.036392,0.00030012,4]
[334452481,1723111841926,-8326.3447848,0.00030015,2]
[334452482,1723111841939,-2200.0,0.00030021,7]
[334452483,1723111841949,-4700.0,0.00030022,7]
[334452484,1723111841958,-4700.0,0.00030061,7]
[334452485,1723111841967,-200.99530001,0.00030073,5]
[334452486,1723111841977,-150.112233,0.000301,7]
[334452487,1723111841986,-500.0,0.00030219,7]
[334452488,1723111841996,-4700.0,0.00030224,7]
[334452489,1723111842193,-151.0,0.0003024,6]
[334452490,1723111842239,-571.8077,0.00030242,7]
[334452491,1723111842249,-571.8077,0.00030242,7]
[334452492,1723111842258,-31022.036392,0.00030242,4]
[334452493,1723111842268,-4700.0,0.00030252,7]
[334452494,1723111842277,-4700.0,0.00030294,7]
[334452495,1723111842287,-4700.0,0.00030319,7]
[334452496,1723111842296,-3300.0,0.00030329,7]
[334452497,1723111842306,-4700.0,0.00030344,7]
[334452498,1723111842316,-3300.0,0.00030362,7]
[334452499,1723111842325,-150.112233,0.000304,6]
[334452500,1723111842335,-500.0,0.00030409,7]
[334452501,1723111842345,-150.0,0.00030411,2]
[334452502,1723111842354,-31022.036392,0.00030474,4]
[334452503,1723111842375,-172.16524641,0.000305,2]
[334452504,1723111842386,-2200.0,0.00030521,7]
[334452505,1723111842397,-2947.03880283,0.00030557,7]
[334452506,1723111842415,-1752.96119717,0.00030557,7]
[334452507,1723111842426,-2000.0,0.0003057,2]
[334452508,1723111842438,-150.112233,0.000306,8]
[334452509,1723111842450,-111.28656983,0.0003066,4]
[334452540,1723111843788,-27.81161191,0.00021531,2]
[334452549,1723111846772,-177.11136754,0.00021531,2]
[334452550,1723111846782,-153.0,0.00028454,2]
[334452551,1723111846792,-153.0,0.00028454,2]
[334452552,1723111846802,-153.0,0.00028454,2]
[334452553,1723111846812,-153.0,0.00028454,2]
[334452554,1723111846822,-12353.24,0.00029581,3]
[334452555,1723111846831,-5530.28998259,0.0003066,4]
[334452591,1723112434868,169.923289,0.00014247,2]
[334452593,1723112505359,269.35281729,0.00014247,2]
[334452594,1723112517334,729.4,0.00014247,2]
[334452595,1723112532506,212.12334375,0.00014247,2]
[334452596,1723112533994,218.74438311,0.00014247,2]
[334452598,1723112573187,207.16450835,0.00014247,2]
[334452691,1723113031815,-336.08175374,0.00015708,2]
[334452760,1723113042497,-8777.36260481,0.00015708,2]
[334452763,1723113042506,-1671.0234155,0.00015708,2]
[334452766,1723113042516,-3088.98876635,0.00015708,2]
[334452769,1723113042525,-1163.36571829,0.00015708,2]
[334452772,1723113042534,-472.12044886,0.00015708,2]
[334452775,1723113042544,-808.88059479,0.00015708,2]
[334452777,1723113042553,-2000.0,0.0001571,2]
[334452781,1723113042563,-219.1840785,0.00016095,2]
[334452785,1723113042572,-155.14905259,0.00016095,2]
[334452787,1723113042582,-1091.69139402,0.00016095,2]
[334452789,1723113042591,-188.24924053,0.0001611,2]
[334452791,1723113042600,-344.27180303,0.0001611,2]
[334452793,1723113042610,-808.14934153,0.00017019,2]
[334452795,1723113042620,-184.707895,0.00018372,2]
[334452797,1723113042630,-2617.63546734,0.00020999,2]
[334452799,1723113042639,-1793.60830206,0.00021011,2]
[334452802,1723113042649,-180.82691021,0.0002142,2]
[334452804,1723113042659,-1532.60272107,0.00021442,2]
[334452806,1723113042668,-2162.90546762,0.00021532,2]
[334452808,1723113042679,-1536.72351208,0.00021532,2]
[334452810,1723113042688,-694.06857466,0.00021532,2]
[334452812,1723113042699,-932.36255016,0.00021906,2]
[334452813,1723113042708,-24900.0,0.00024264,2]
[334452815,1723113042717,-1532.60272106,0.00025143,2]
[334452817,1723113042727,-200.0,0.00026027,2]
[334452819,1723113042737,-8326.34478382,0.00027394,2]
[334452821,1723113042747,-305.65463372,0.00027396,2]
[334452823,1723113042757,-2605.08504403,0.00027396,2]
[334452826,1723113042767,-169.923289,0.00027884,2]
[334452828,1723113042776,-150.0,0.00028362,2]
[334452829,1723113042786,-507.0,0.00028362,2]
[334452831,1723113042796,-153.0,0.00028487,2]
[334452833,1723113042806,-153.0,0.00028487,2]
[334452835,1723113042815,-153.0,0.00028487,2]
[334452837,1723113042825,-153.0,0.00028487,2]
[334452839,1723113042834,-153.0,0.00028487,2]
[334452841,1723113042843,-153.0,0.00028487,2]
[334452843,1723113042853,-153.0,0.00028487,2]
[334452845,1723113042862,-153.0,0.00028487,2]
[334452847,1723113042872,-153.0,0.00028487,2]
[334452849,1723113042882,-153.0,0.00028487,2]
[334452851,1723113042892,-153.0,0.00028487,2]
[334452853,1723113042902,-153.0,0.00028487,2]
[334452855,1723113042912,-153.0,0.00028487,2]
[334452857,1723113042922,-153.0,0.00028487,2]
[334452859,1723113042936,-153.0,0.00028487,2]
[334452861,1723113042945,-153.0,0.00028487,2]
[334452863,1723113042956,-153.0,0.00028487,2]
[334452865,1723113042966,-153.0,0.00028487,2]
[334452867,1723113042976,-153.0,0.00028487,2]
[334452869,1723113042985,-153.0,0.00028487,2]
[334452871,1723113042995,-153.0,0.00028487,2]
[334452873,1723113043004,-153.0,0.00028487,2]
[334452874,1723113043026,-153.0,0.00028487,2]
[334452875,1723113043037,-153.0,0.00028487,2]
[334452876,1723113043047,-153.0,0.00028487,2]
[334452877,1723113043057,-153.0,0.00028487,2]
[334452878,1723113043068,-153.0,0.00028487,2]
[334452879,1723113043078,-153.0,0.00028487,2]
[334452880,1723113043088,-153.0,0.00028487,2]
[334452881,1723113043101,-153.0,0.00028487,2]
[334452882,1723113043110,-153.0,0.00028487,2]
[334452883,1723113043120,-153.0,0.00028487,2]
[334452884,1723113043129,-153.0,0.00028487,2]
[334452885,1723113043140,-153.0,0.00028487,2]
[334452886,1723113043150,-153.0,0.00028487,2]
[334452887,1723113043160,-153.0,0.00028487,2]
[334452888,1723113043171,-153.0,0.00028487,2]
[334452890,1723113043183,-153.0,0.00028487,2]
[334452892,1723113043193,-153.0,0.00028487,2]
[334452894,1723113043204,-153.0,0.00028487,2]
[334452896,1723113043214,-153.0,0.00028487,2]
[334452898,1723113043226,-153.0,0.00028487,2]
[334452900,1723113043237,-153.0,0.00028487,2]
[334452902,1723113043247,-153.0,0.00028487,2]
[334452905,1723113043258,-153.0,0.00028487,2]
[334452907,1723113043268,-153.0,0.00028487,2]
[334452909,1723113043279,-153.0,0.00028487,2]
[334452911,1723113043290,-153.0,0.00028487,2]
[334452913,1723113043301,-153.0,0.00028488,2]
[334452915,1723113043313,-153.0,0.00028488,2]
[334452917,1723113043323,-153.0,0.00028488,2]
[334452919,1723113043333,-153.0,0.00028488,2]
[334452921,1723113043343,-153.0,0.00028488,2]
[334452923,1723113043353,-153.0,0.00028488,2]
[334452925,1723113043363,-153.0,0.00028488,2]
[334452927,1723113043373,-153.0,0.00028488,2]
[334452929,1723113043384,-153.0,0.00028488,2]
[334452931,1723113043394,-153.0,0.00028488,2]
[334452933,1723113043404,-153.0,0.00028488,2]
[334452935,1723113043414,-153.0,0.00028488,2]
[334452937,1723113043427,-5000.0,0.00028767,2]
[334452939,1723113043437,-969.48493059,0.00028767,2]
[334452941,1723113043447,-1532.60272106,0.00028845,2]
[334452943,1723113043457,-5000.0,0.00029199,2]
[334452945,1723113043467,-301.3180478,0.00029397,2]
[334452947,1723113043477,-153.0,0.00029397,2]
[334452949,1723113043486,-153.0,0.00029397,2]
[334452951,1723113043496,-153.0,0.00029397,2]
[334452953,1723113043506,-4500.0,0.00029528,2]
[334452955,1723113043516,-172.16524641,0.00029595,2]
[334452957,1723113043526,-9301.46,0.00029677,3]
[334452959,1723113043537,-869.58,0.00029687,3]
[334452961,1723113043547,-5957.39,0.00029687,3]
[334452963,1723113043557,-153.0,0.00029697,2]
[334452965,1723113043567,-153.0,0.00029697,2]
[334452967,1723113043577,-153.0,0.00029697,2]
[334452969,1723113043586,-153.0,0.00029697,2]
[334452971,1723113043596,-153.0,0.00029697,2]
[334452973,1723113043606,-153.0,0.00029697,2]
[334452975,1723113043615,-153.0,0.00029697,2]
[334452977,1723113043625,-153.0,0.00029697,2]
[334452979,1723113043635,-289.86,0.00029846,3]
[334452981,1723113043645,-33633.4645838,0.00029866,3]
[334452983,1723113043655,-3300.0,0.00029876,2]
[334452985,1723113043664,-2000.0,0.00029877,2]
[334452987,1723113043675,-4700.0,0.00029926,2]
[334452989,1723113043685,-275.51474195,0.0003,4]
[334452991,1723113043695,-254.96952233,0.0003,5]
[334452993,1723113043704,-154.72922386,0.0003,5]
[334452995,1723113043714,-208.89860768,0.0003,2]
[334452997,1723113043724,-150.0,0.0003,2]
[334452999,1723113043734,-1656.50292964,0.0003,2]
[334453001,1723113043744,-302.51602577,0.0003,2]
[334453003,1723113043754,-223.0,0.0003,2]
[334453004,1723113043763,-4500.0,0.00030023,7]
[334453006,1723113043773,-4700.0,0.00030033,7]
[334453008,1723113043784,-5000.0,0.00030127,7]
[334453010,1723113043793,-151.0,0.00030241,6]
[334453012,1723113043804,-150.0,0.00030411,2]
[334453014,1723113043814,-500.0,0.0003045,7]
[334453016,1723113043824,-2200.0,0.00030473,7]
[334453019,1723113043835,-212.54094144,0.00030492,2]
[334453021,1723113043845,-500.0,0.00030492,2]
[334453023,1723113043858,-500.0,0.00030492,2]
[334453025,1723113043870,-500.0,0.00030492,2]
[334453027,1723113043880,-500.0,0.00030492,2]
[334453029,1723113043891,-518.19301968,0.00030492,2]
[334453031,1723113043901,-500.0,0.00030492,2]
[334453033,1723113043911,-500.0,0.00030492,2]
[334453035,1723113043921,-34146.41447306,0.00030493,11]
[334453037,1723113043935,-33633.4645838,0.00030493,4]
[334453039,1723113043944,-33633.4645838,0.00030495,4]
[334453041,1723113043954,-35613.94890421,0.00030503,2]
[334453043,1723113043964,-3300.0,0.00030519,7]
[334453045,1723113043974,-2200.0,0.00030536,7]
[334453047,1723113043984,-4700.0,0.00030536,7]
[334453049,1723113043993,-172.16524641,0.0003055,2]
[334453051,1723113044003,-22773.76598692,0.0003055,5]
[334453053,1723113044013,-2000.0,0.0003055,2]